[Event "Early-Titled-Tuesday-Blitz-March-19-2024"]
[Site "Chess.com"]
[Date "2024.03.19"]
[Round "11"]
[White "Sina_Movahed"]
[Black "GM_dmitrij"]
[Result "1-0"]
[WhiteElo "3104"]
[BlackElo "3096"]
[TimeControl "180+1"]
[EndTime "10:07:03 PDT"]
[Termination "Sina_Movahed won by resignation"]

1. e4 {[%clk 0:02:46.8]} 1... e5 {[%clk 0:03:00.2]} 2. Nf3 {[%clk 0:02:47.4]}
2... Nc6 {[%clk 0:03:00.6]} 3. Bb5 {[%clk 0:02:48.1]} 3... a6 {[%clk 0:03:00.9]}
4. Ba4 {[%clk 0:02:48.6]} 4... Nf6 {[%clk 0:03:01.2]} 5. O-O {[%clk 0:02:49.3]}
5... Bc5 {[%clk 0:03:01.5]} 6. c3 {[%clk 0:02:41.2]} 6... b5 {[%clk 0:03:01.4]}
7. Bb3 {[%clk 0:02:39.5]} 7... d6 {[%clk 0:03:01.5]} 8. d4 {[%clk 0:02:39.2]}
8... Bb6 {[%clk 0:03:01.4]} 9. a4 {[%clk 0:02:39.9]} 9... Bg4 {[%clk 0:03:00.8]}
10. axb5 {[%clk 0:02:30.5]} 10... axb5 {[%clk 0:03:01.7]} 11. Rxa8 {[%clk
0:02:30.5]} 11... Qxa8 {[%clk 0:03:02.6]} 12. h3 {[%clk 0:02:31.1]} 12... Bh5
{[%clk 0:02:59.8]} 13. Be3 {[%clk 0:01:50.9]} 13... O-O {[%clk 0:02:51]} 14.
Nbd2 {[%clk 0:01:49]} 14... exd4 {[%clk 0:02:40.6]} 15. cxd4 {[%clk 0:01:47.1]}
15... Bxd4 {[%clk 0:02:29.4]} 16. Bg5 {[%clk 0:01:36.9]} 16... Bxf3 {[%clk
0:01:54.8]} 17. Nxf3 {[%clk 0:01:31.7]} 17... Qa7 {[%clk 0:01:15.3]} 18. Bd5
{[%clk 0:01:27.6]} 18... Nxd5 {[%clk 0:00:52.8]} 19. exd5 {[%clk 0:01:28.5]}
19... Bxb2 {[%clk 0:00:50.8]} 20. dxc6 {[%clk 0:01:27.9]} 20... Qc5 {[%clk
0:00:49.8]} 21. Qb3 {[%clk 0:01:04]} 21... Bc3 {[%clk 0:00:41.9]} 22. Rc1 {[%clk
0:00:56.5]} 22... b4 {[%clk 0:00:42.1]} 23. Bd2 {[%clk 0:00:56.4]} 23... Qxc6
{[%clk 0:00:39.4]} 24. Bxc3 {[%clk 0:00:56.5]} 24... bxc3 {[%clk 0:00:40]} 25.
Rxc3 {[%clk 0:00:57.1]} 25... Qd7 {[%clk 0:00:39.3]} 26. Qb7 {[%clk 0:00:56.8]}
26... Rc8 {[%clk 0:00:39.2]} 27. Nd4 {[%clk 0:00:55.4]} 27... g6 {[%clk
0:00:28.9]} 28. Re3 {[%clk 0:00:45.9]} 28... Re8 {[%clk 0:00:20.6]} 29. Qb5
{[%clk 0:00:39.9]} 29... Re7 {[%clk 0:00:09.4]} 30. Qxd7 {[%clk 0:00:22.3]}
30... Rxd7 {[%clk 0:00:10.3]} 31. Nc6 {[%clk 0:00:20.6]} 31... Kg7 {[%clk
0:00:08.5]} 32. Re7 {[%clk 0:00:11.5]} 32... Rxe7 {[%clk 0:00:07.7]} 33. Nxe7
{[%clk 0:00:12.4]} 33... c5 {[%clk 0:00:06.2]} 34. Nd5 {[%clk 0:00:12.6]} 34...
f5 {[%clk 0:00:04.9]} 35. Kf1 {[%clk 0:00:13.2]} 35... Kf7 {[%clk 0:00:05.4]}
36. Ke2 {[%clk 0:00:13.9]} 36... Ke6 {[%clk 0:00:06.1]} 37. Nc7+ {[%clk
0:00:13.2]} 37... Ke5 {[%clk 0:00:06.6]} 38. Ke3 {[%clk 0:00:12.6]} 38... f4+
{[%clk 0:00:05.7]} 39. Kd3 {[%clk 0:00:13.2]} 39... d5 {[%clk 0:00:06.6]} 40.
Nb5 {[%clk 0:00:11.7]} 40... g5 {[%clk 0:00:04.9]} 41. Na3 {[%clk 0:00:11.1]}
41... h5 {[%clk 0:00:04.5]} 42. f3 {[%clk 0:00:10.5]} 42... Kf5 {[%clk
0:00:04.1]} 43. Nb1 {[%clk 0:00:10.2]} 43... g4 {[%clk 0:00:03.8]} 44. Nc3
{[%clk 0:00:10.1]} 44... gxf3 {[%clk 0:00:03.4]} 45. gxf3 {[%clk 0:00:11]} 45...
Ke5 {[%clk 0:00:04.3]} 46. h4 {[%clk 0:00:10.5]} 46... c4+ {[%clk 0:00:03.8]}
47. Kd2 {[%clk 0:00:10.6]} 47... Kd4 {[%clk 0:00:04.3]} 48. Ne2+ {[%clk
0:00:10.3]} 48... Ke5 {[%clk 0:00:04.6]} 49. Kc3 {[%clk 0:00:11]} 49... Kf5
{[%clk 0:00:05.1]} 50. Kd4 {[%clk 0:00:11.2]} 50... Kf6 {[%clk 0:00:03.4]} 51.
Nxf4 {[%clk 0:00:10.6]} 51... c3 {[%clk 0:00:03.6]} 52. Kxc3 {[%clk 0:00:10.5]}
52... Ke5 {[%clk 0:00:04.5]} 53. Nxh5 {[%clk 0:00:10.8]} 53... Kf5 {[%clk
0:00:05.4]} 54. Ng3+ {[%clk 0:00:10.7]} 1-0

[Event "Early-Titled-Tuesday-Blitz-March-19-2024"]
[Site "Chess.com"]
[Date "2024.03.19"]
[Round "11"]
[White "Meri-Arabidze"]
[Black "Gryffindorac8"]
[Result "0-1"]
[WhiteElo "2677"]
[BlackElo "2446"]
[TimeControl "180+1"]
[EndTime "10:07:03 PDT"]
[Termination "Gryffindorac8 won on time"]

1. d4 {[%clk 0:02:57.9]} 1... Nf6 {[%clk 0:02:59.4]} 2. c4 {[%clk 0:02:57.9]}
2... c5 {[%clk 0:02:57.5]} 3. d5 {[%clk 0:02:57.6]} 3... b5 {[%clk 0:02:57.6]}
4. cxb5 {[%clk 0:02:56.9]} 4... a6 {[%clk 0:02:57.5]} 5. e3 {[%clk 0:02:56.8]}
5... axb5 {[%clk 0:02:54.3]} 6. Bxb5 {[%clk 0:02:56.5]} 6... Qa5+ {[%clk
0:02:54.2]} 7. Nc3 {[%clk 0:02:56.6]} 7... Bb7 {[%clk 0:02:52.9]} 8. Bd2 {[%clk
0:02:55.6]} 8... Qb6 {[%clk 0:02:52.9]} 9. a4 {[%clk 0:02:54.7]} 9... Nxd5
{[%clk 0:02:30.2]} 10. Nf3 {[%clk 0:02:54.7]} 10... Nf6 {[%clk 0:02:26.7]} 11.
O-O {[%clk 0:02:52.1]} 11... e6 {[%clk 0:02:24.8]} 12. Ne5 {[%clk 0:02:51.7]}
12... Be7 {[%clk 0:02:20.5]} 13. e4 {[%clk 0:02:33.1]} 13... O-O {[%clk
0:02:15.3]} 14. Nc4 {[%clk 0:02:32.1]} 14... Qc7 {[%clk 0:02:10.7]} 15. e5
{[%clk 0:02:31.8]} 15... Nd5 {[%clk 0:02:01]} 16. Ne4 {[%clk 0:02:29.8]} 16...
Nc6 {[%clk 0:01:59]} 17. Qh5 {[%clk 0:01:55.4]} 17... f5 {[%clk 0:01:42.4]} 18.
exf6 {[%clk 0:01:51.8]} 18... Nxf6 {[%clk 0:01:41.7]} 19. Nxf6+ {[%clk 0:01:51]}
19... Rxf6 {[%clk 0:01:28.4]} 20. Bg5 {[%clk 0:01:37.9]} 20... Rf5 {[%clk
0:01:25]} 21. h4 {[%clk 0:01:30.5]} 21... Nd4 {[%clk 0:00:58.7]} 22. Ne3 {[%clk
0:01:25.6]} 22... g6 {[%clk 0:00:38.8]} 23. Qg4 {[%clk 0:01:17.1]} 23... Rf7
{[%clk 0:00:25.6]} 24. Bxe7 {[%clk 0:01:17.2]} 24... Rxe7 {[%clk 0:00:26.3]} 25.
h5 {[%clk 0:01:17.6]} 25... Rg7 {[%clk 0:00:21.9]} 26. h6 {[%clk 0:01:12]} 26...
Rf7 {[%clk 0:00:21.4]} 27. Bd3 {[%clk 0:00:46.5]} 27... Raf8 {[%clk 0:00:21.1]}
28. Rac1 {[%clk 0:00:36.4]} 28... Rf4 {[%clk 0:00:18.2]} 29. Qg5 {[%clk
0:00:29.1]} 29... d6 {[%clk 0:00:14.2]} 30. a5 {[%clk 0:00:21.6]} 30... Qf7
{[%clk 0:00:14]} 31. a6 {[%clk 0:00:20.4]} 31... Ba8 {[%clk 0:00:12.4]} 32. Ng4
{[%clk 0:00:17.1]} 32... d5 {[%clk 0:00:07.6]} 33. Rce1 {[%clk 0:00:13.7]} 33...
c4 {[%clk 0:00:06.8]} 34. Bb1 {[%clk 0:00:11.8]} 34... Nc6 {[%clk 0:00:02.3]}
35. Ne5 {[%clk 0:00:11.5]} 35... Nxe5 {[%clk 0:00:01.8]} 36. Qxe5 {[%clk
0:00:12]} 36... Rf6 {[%clk 0:00:02.5]} 37. a7 {[%clk 0:00:10.8]} 37... Qxa7
{[%clk 0:00:02.6]} 38. Qd6 {[%clk 0:00:09.1]} 38... Qf7 {[%clk 0:00:02.4]} 39.
Qg3 {[%clk 0:00:06.6]} 39... Rf4 {[%clk 0:00:02.7]} 40. f3 {[%clk 0:00:06.7]}
40... Kh8 {[%clk 0:00:03.3]} 41. Qh3 {[%clk 0:00:07.1]} 41... d4 {[%clk
0:00:03.1]} 42. Bc2 {[%clk 0:00:07.6]} 42... d3 {[%clk 0:00:03.6]} 43. Ba4
{[%clk 0:00:08.3]} 43... Qa7+ {[%clk 0:00:03.4]} 44. Kh1 {[%clk 0:00:08.2]}
44... Qxa4 {[%clk 0:00:03.9]} 45. Qxe6 {[%clk 0:00:08.2]} 45... Qb5 {[%clk
0:00:04]} 46. Re5 {[%clk 0:00:03.8]} 46... Qb7 {[%clk 0:00:02.3]} 47. Qd6 {[%clk
0:00:03.5]} 47... Qg7 {[%clk 0:00:02.6]} 48. Re7 {[%clk 0:00:03.4]} 48... Qf6
{[%clk 0:00:02.5]} 49. Qxf6+ {[%clk 0:00:01.6]} 49... R4xf6 {[%clk 0:00:03.4]}
50. Rfe1 {[%clk 0:00:01.4]} 50... g5 {[%clk 0:00:03.3]} 0-1

[Event "Early-Titled-Tuesday-Blitz-March-19-2024"]
[Site "Chess.com"]
[Date "2024.03.19"]
[Round "11"]
[White "Roedor"]
[Black "MikeWizard"]
[Result "0-1"]
[WhiteElo "2297"]
[BlackElo "2151"]
[TimeControl "180+1"]
[EndTime "10:07:04 PDT"]
[Termination "MikeWizard won on time"]

1. c4 {[%clk 0:03:00.9]} 1... Nf6 {[%clk 0:02:45.3]} 2. g3 {[%clk 0:02:59.3]}
2... g6 {[%clk 0:02:44.6]} 3. Bg2 {[%clk 0:02:59.4]} 3... Bg7 {[%clk 0:02:44.7]}
4. Nc3 {[%clk 0:02:59.4]} 4... O-O {[%clk 0:02:44.5]} 5. Nf3 {[%clk 0:02:59.4]}
5... d6 {[%clk 0:02:44.5]} 6. O-O {[%clk 0:02:59.7]} 6... c5 {[%clk 0:02:43.7]}
7. d4 {[%clk 0:02:59.5]} 7... Nc6 {[%clk 0:02:41.1]} 8. dxc5 {[%clk 0:02:58.8]}
8... dxc5 {[%clk 0:02:40.6]} 9. Be3 {[%clk 0:02:59.3]} 9... Qa5 {[%clk
0:02:19.1]} 10. Qb3 {[%clk 0:02:57.5]} 10... Rd8 {[%clk 0:02:15.6]} 11. Qb5
{[%clk 0:02:55.7]} 11... Qxb5 {[%clk 0:02:04.7]} 12. cxb5 {[%clk 0:02:56.6]}
12... Nd4 {[%clk 0:02:04.4]} 13. Rfd1 {[%clk 0:02:57.1]} 13... Ng4 {[%clk
0:02:00.9]} 14. Na4 {[%clk 0:02:38]} 14... Nxe2+ {[%clk 0:01:47.7]} 15. Kf1
{[%clk 0:02:36.5]} 15... Nd4 {[%clk 0:01:43.7]} 16. Nxc5 {[%clk 0:02:30.9]}
16... e5 {[%clk 0:01:34.4]} 17. Nxd4 {[%clk 0:02:20.7]} 17... exd4 {[%clk
0:01:33.7]} 18. Bxb7 {[%clk 0:01:49.7]} 18... Bxb7 {[%clk 0:01:24.7]} 19. Nxb7
{[%clk 0:01:50.6]} 19... Rd7 {[%clk 0:01:17.8]} 20. Nc5 {[%clk 0:01:47.7]} 20...
Rd5 {[%clk 0:01:17.4]} 21. Nb3 {[%clk 0:01:44.4]} 21... Rad8 {[%clk 0:01:14.7]}
22. Bf4 {[%clk 0:01:15.5]} 22... g5 {[%clk 0:01:06.1]} 23. h3 {[%clk 0:01:11.4]}
23... gxf4 {[%clk 0:00:56.5]} 24. hxg4 {[%clk 0:01:10.8]} 24... fxg3 {[%clk
0:00:56.5]} 25. fxg3 {[%clk 0:01:11.7]} 25... Rxb5 {[%clk 0:00:55.7]} 26. Kg2
{[%clk 0:01:09]} 26... d3 {[%clk 0:00:53.7]} 27. Rd2 {[%clk 0:01:09.4]} 27... a5
{[%clk 0:00:51.7]} 28. Rb1 {[%clk 0:00:57]} 28... a4 {[%clk 0:00:45.5]} 29. Nc1
{[%clk 0:00:56.9]} 29... Bh6 {[%clk 0:00:43]} 30. Rxd3 {[%clk 0:00:54]} 30...
Rxd3 {[%clk 0:00:34]} 31. Nxd3 {[%clk 0:00:54.9]} 31... a3 {[%clk 0:00:31.7]}
32. Kf3 {[%clk 0:00:49.2]} 32... axb2 {[%clk 0:00:26.5]} 33. Rxb2 {[%clk
0:00:49]} 33... Ra5 {[%clk 0:00:25.7]} 34. Nf4 {[%clk 0:00:32.1]} 34... Ra3+
{[%clk 0:00:22.7]} 35. Ke4 {[%clk 0:00:32.5]} 35... Ra4+ {[%clk 0:00:22.6]} 36.
Kf5 {[%clk 0:00:27.5]} 36... Ra5+ {[%clk 0:00:22.6]} 37. Ke4 {[%clk 0:00:21.3]}
37... Ra4+ {[%clk 0:00:22.5]} 38. Ke3 {[%clk 0:00:18.5]} 38... Ra3+ {[%clk
0:00:22]} 39. Ke2 {[%clk 0:00:16.6]} 39... Rxg3 {[%clk 0:00:20.4]} 40. Rb8+
{[%clk 0:00:16.2]} 40... Bf8 {[%clk 0:00:20]} 41. a4 {[%clk 0:00:11.7]} 41...
Rxg4 {[%clk 0:00:19.4]} 42. Kf3 {[%clk 0:00:11.9]} 42... Rg1 {[%clk 0:00:17.8]}
43. Ra8 {[%clk 0:00:10.6]} 43... h5 {[%clk 0:00:15.6]} 44. Nxh5 {[%clk
0:00:09.5]} 44... Rf1+ {[%clk 0:00:14]} 45. Kg4 {[%clk 0:00:09.4]} 45... f5+
{[%clk 0:00:12]} 46. Kg5 {[%clk 0:00:09.1]} 46... Kf7 {[%clk 0:00:12.2]} 47.
Ra7+ {[%clk 0:00:08.7]} 47... Ke6 {[%clk 0:00:12.4]} 48. Nf4+ {[%clk 0:00:08.6]}
48... Kd6 {[%clk 0:00:09.3]} 49. Ra6+ {[%clk 0:00:06]} 49... Kc5 {[%clk
0:00:07.4]} 50. Ne6+ {[%clk 0:00:05.9]} 50... Kb4 {[%clk 0:00:07.1]} 51. Nxf8
{[%clk 0:00:06.1]} 51... f4 {[%clk 0:00:06.7]} 52. Ne6 {[%clk 0:00:01.2]} 52...
f3 {[%clk 0:00:06.7]} 0-1

[Event "Early-Titled-Tuesday-Blitz-March-19-2024"]
[Site "Chess.com"]
[Date "2024.03.19"]
[Round "11"]
[White "dropstoneDP"]
[Black "Elegance_Riks"]
[Result "1/2-1/2"]
[WhiteElo "2987"]
[BlackElo "2797"]
[TimeControl "180+1"]
[EndTime "10:07:05 PDT"]
[Termination "Game drawn by repetition"]

1. e4 {[%clk 0:03:00.9]} 1... e6 {[%clk 0:02:59.6]} 2. d4 {[%clk 0:03:00.7]}
2... d5 {[%clk 0:03:00]} 3. Nc3 {[%clk 0:03:00.9]} 3... Bb4 {[%clk 0:02:59.5]}
4. e5 {[%clk 0:03:00]} 4... c5 {[%clk 0:02:59.1]} 5. a3 {[%clk 0:03:00.6]} 5...
Bxc3+ {[%clk 0:02:59.3]} 6. bxc3 {[%clk 0:03:01.5]} 6... Ne7 {[%clk 0:02:59.4]}
7. Qg4 {[%clk 0:03:00.2]} 7... Qc7 {[%clk 0:02:50]} 8. Qxg7 {[%clk 0:02:59]}
8... Rg8 {[%clk 0:02:49.8]} 9. Qxh7 {[%clk 0:02:59.5]} 9... cxd4 {[%clk
0:02:50.3]} 10. Qd3 {[%clk 0:02:58.9]} 10... dxc3 {[%clk 0:02:49.5]} 11. Ne2
{[%clk 0:02:56.6]} 11... Nbc6 {[%clk 0:02:48.5]} 12. Qxc3 {[%clk 0:02:50.8]}
12... Qxe5 {[%clk 0:02:45.6]} 13. Qxe5 {[%clk 0:02:49.2]} 13... Nxe5 {[%clk
0:02:46.5]} 14. h4 {[%clk 0:02:48.9]} 14... Bd7 {[%clk 0:02:37.9]} 15. Bg5
{[%clk 0:02:43.6]} 15... Rc8 {[%clk 0:02:35.9]} 16. Nd4 {[%clk 0:02:39.1]} 16...
a6 {[%clk 0:02:33.9]} 17. Be2 {[%clk 0:02:24.6]} 17... N7c6 {[%clk 0:02:31.5]}
18. Nxc6 {[%clk 0:02:24.3]} 18... Bxc6 {[%clk 0:02:26]} 19. Rb1 {[%clk
0:01:54.6]} 19... Nd7 {[%clk 0:02:10.1]} 20. Rh2 {[%clk 0:01:43.3]} 20... f6
{[%clk 0:02:06.2]} 21. Bd2 {[%clk 0:01:42.6]} 21... d4 {[%clk 0:02:01.4]} 22. f3
{[%clk 0:01:37.5]} 22... Bd5 {[%clk 0:01:54.3]} 23. Bd3 {[%clk 0:01:34.2]} 23...
Ne5 {[%clk 0:01:47.9]} 24. Rb4 {[%clk 0:00:53.2]} 24... Nxd3+ {[%clk 0:01:33.4]}
25. cxd3 {[%clk 0:00:53.1]} 25... e5 {[%clk 0:01:33.8]} 26. Rb6 {[%clk
0:00:50.3]} 26... Kf7 {[%clk 0:01:34]} 27. h5 {[%clk 0:00:45.7]} 27... Bc6
{[%clk 0:01:18.9]} 28. h6 {[%clk 0:00:32.8]} 28... Rh8 {[%clk 0:01:19.3]} 29. f4
{[%clk 0:00:32.5]} 29... e4 {[%clk 0:01:09.2]} 30. dxe4 {[%clk 0:00:32]} 30...
Bxe4 {[%clk 0:01:09.5]} 31. Rd6 {[%clk 0:00:30.7]} 31... Rcd8 {[%clk 0:01:06.3]}
32. Rxd8 {[%clk 0:00:30.6]} 32... Rxd8 {[%clk 0:01:07]} 33. g4 {[%clk
0:00:31.2]} 33... Re8 {[%clk 0:00:57.4]} 34. Re2 {[%clk 0:00:27.5]} 34... Bc6
{[%clk 0:00:42.8]} 35. Rxe8 {[%clk 0:00:25.4]} 35... Bxe8 {[%clk 0:00:43.7]} 36.
Kf2 {[%clk 0:00:18.6]} 36... Kg6 {[%clk 0:00:37.8]} 37. f5+ {[%clk 0:00:17.1]}
37... Kh7 {[%clk 0:00:38.1]} 38. Kg3 {[%clk 0:00:08.5]} 38... Ba4 {[%clk
0:00:29.8]} 39. Kh4 {[%clk 0:00:08]} 39... Bc2 {[%clk 0:00:28.8]} 40. Bb4 {[%clk
0:00:05.8]} 40... Be4 {[%clk 0:00:27.4]} 41. Bd2 {[%clk 0:00:03]} 41... d3
{[%clk 0:00:27.6]} 42. g5 {[%clk 0:00:03.2]} 42... Bxf5 {[%clk 0:00:24]} 43.
gxf6 {[%clk 0:00:03.6]} 43... Kg6 {[%clk 0:00:23.3]} 44. h7 {[%clk 0:00:04]}
44... Kxh7 {[%clk 0:00:21.7]} 45. Kg5 {[%clk 0:00:04.6]} 45... Bg6 {[%clk
0:00:20.2]} 46. Kf4 {[%clk 0:00:04.5]} 46... Kg8 {[%clk 0:00:20.3]} 47. Ke5
{[%clk 0:00:04.5]} 47... Kf7 {[%clk 0:00:20.8]} 48. Bc3 {[%clk 0:00:05.1]} 48...
Bh5 {[%clk 0:00:20.6]} 49. Kd6 {[%clk 0:00:05]} 49... d2 {[%clk 0:00:20.2]} 50.
Bxd2 {[%clk 0:00:04.7]} 50... Kxf6 {[%clk 0:00:20.8]} 51. Kc7 {[%clk 0:00:05.3]}
51... Bf3 {[%clk 0:00:21.3]} 52. Kb6 {[%clk 0:00:05.9]} 52... Bc6 {[%clk
0:00:21.5]} 53. a4 {[%clk 0:00:05.9]} 53... Kf5 {[%clk 0:00:21.9]} 54. a5 {[%clk
0:00:06.8]} 54... Ke4 {[%clk 0:00:22.4]} 55. Bh6 {[%clk 0:00:06]} 55... Kd3
{[%clk 0:00:23]} 56. Bf8 {[%clk 0:00:06.4]} 56... Ke2 {[%clk 0:00:23.7]} 57. Bd6
{[%clk 0:00:06.9]} 57... Kd3 {[%clk 0:00:24.4]} 58. Bc7 {[%clk 0:00:07.8]} 58...
Ke2 {[%clk 0:00:25]} 59. Bb8 {[%clk 0:00:08.7]} 59... Kf3 {[%clk 0:00:25.5]} 60.
Bc7 {[%clk 0:00:09.6]} 60... Ke4 {[%clk 0:00:26.1]} 61. Bb8 {[%clk 0:00:10.5]}
61... Kf5 {[%clk 0:00:26.6]} 62. Bc7 {[%clk 0:00:11.4]} 62... Ke6 {[%clk
0:00:27.2]} 63. Bb8 {[%clk 0:00:12.3]} 63... Kd7 {[%clk 0:00:27.8]} 64. Bh2
{[%clk 0:00:13]} 64... Kc8 {[%clk 0:00:28.2]} 65. Bg1 {[%clk 0:00:13.9]} 65...
Kd7 {[%clk 0:00:28.8]} 66. Bh2 {[%clk 0:00:14.8]} 66... Kc8 {[%clk 0:00:29.4]}
67. Bg1 {[%clk 0:00:15.7]} 67... Kd7 {[%clk 0:00:30]} 68. Bh2 {[%clk 0:00:16.6]}
1/2-1/2

[Event "Early-Titled-Tuesday-Blitz-March-19-2024"]
[Site "Chess.com"]
[Date "2024.03.19"]
[Round "11"]
[White "Sofia_Blokhin"]
[Black "Alenzer"]
[Result "0-1"]
[WhiteElo "2230"]
[BlackElo "2184"]
[TimeControl "180+1"]
[EndTime "10:07:06 PDT"]
[Termination "Alenzer won by checkmate"]

1. d4 {[%clk 0:03:00.9]} 1... d5 {[%clk 0:02:57.5]} 2. c4 {[%clk 0:03:00.3]}
2... dxc4 {[%clk 0:02:54]} 3. Nf3 {[%clk 0:02:57]} 3... Nf6 {[%clk 0:02:52.1]}
4. e3 {[%clk 0:02:56.9]} 4... a6 {[%clk 0:02:51.9]} 5. a4 {[%clk 0:02:54.9]}
5... e6 {[%clk 0:02:48.8]} 6. Bxc4 {[%clk 0:02:54.5]} 6... Nc6 {[%clk
0:02:48.8]} 7. O-O {[%clk 0:02:53.1]} 7... Be7 {[%clk 0:02:48.4]} 8. Nc3 {[%clk
0:02:52.5]} 8... O-O {[%clk 0:02:46.8]} 9. e4 {[%clk 0:02:49.7]} 9... b6 {[%clk
0:02:41.5]} 10. e5 {[%clk 0:02:49]} 10... Nd5 {[%clk 0:02:41.3]} 11. Bd3 {[%clk
0:02:41.6]} 11... f5 {[%clk 0:02:26.2]} 12. exf6 {[%clk 0:02:39.8]} 12... Nxf6
{[%clk 0:02:25.8]} 13. Be3 {[%clk 0:02:35.9]} 13... Bb7 {[%clk 0:02:25.4]} 14.
Ng5 {[%clk 0:02:33.5]} 14... Qd7 {[%clk 0:01:56.8]} 15. Qc2 {[%clk 0:02:32.9]}
15... h6 {[%clk 0:01:55.1]} 16. Nh7 {[%clk 0:02:13.5]} 16... Nb4 {[%clk
0:01:50.7]} 17. Nxf8 {[%clk 0:02:05.3]} 17... Rxf8 {[%clk 0:01:30.2]} 18. Qd2
{[%clk 0:02:01.8]} 18... Nxd3 {[%clk 0:01:24]} 19. Qxd3 {[%clk 0:02:01.7]} 19...
Nd5 {[%clk 0:01:18.5]} 20. Qg6 {[%clk 0:01:42.4]} 20... Nf4 {[%clk 0:01:02.8]}
21. Bxf4 {[%clk 0:01:35.9]} 21... Rxf4 {[%clk 0:01:02.7]} 22. Rae1 {[%clk
0:01:24.4]} 22... Rf6 {[%clk 0:00:51.9]} 23. Qg4 {[%clk 0:01:23.4]} 23... Kh7
{[%clk 0:00:40.5]} 24. Ne4 {[%clk 0:01:16.5]} 24... Rg6 {[%clk 0:00:40.4]} 25.
Qd1 {[%clk 0:01:05.4]} 25... Bb4 {[%clk 0:00:34.7]} 26. Re3 {[%clk 0:01:01.4]}
26... Qd5 {[%clk 0:00:30.3]} 27. f3 {[%clk 0:00:58]} 27... a5 {[%clk 0:00:21.1]}
28. Nc3 {[%clk 0:00:51.8]} 28... Qg5 {[%clk 0:00:20.2]} 29. Qc2 {[%clk
0:00:45.6]} 29... Qxe3+ {[%clk 0:00:17.6]} 30. Kh1 {[%clk 0:00:43.9]} 30... Qxd4
{[%clk 0:00:16.8]} 31. Ne2 {[%clk 0:00:42.2]} 31... Qc5 {[%clk 0:00:14.5]} 32.
Qd3 {[%clk 0:00:39.5]} 32... Qf5 {[%clk 0:00:09.6]} 33. Qd7 {[%clk 0:00:35.7]}
33... Bd6 {[%clk 0:00:09.8]} 34. Rd1 {[%clk 0:00:28.5]} 34... Qh5 {[%clk
0:00:09]} 35. Rxd6 {[%clk 0:00:20.5]} 35... cxd6 {[%clk 0:00:06.9]} 36. Qxb7
{[%clk 0:00:20.8]} 36... Qg5 {[%clk 0:00:06.1]} 37. f4 {[%clk 0:00:19.7]} 37...
Qg4 {[%clk 0:00:04.9]} 38. Ng1 {[%clk 0:00:13.6]} 38... Qd1 {[%clk 0:00:02.2]}
39. Qxb6 {[%clk 0:00:11.4]} 39... d5 {[%clk 0:00:02.6]} 40. Qd6 {[%clk
0:00:11.2]} 40... Qd2 {[%clk 0:00:03]} 41. g3 {[%clk 0:00:09.9]} 41... Qd3
{[%clk 0:00:02.9]} 42. Qb6 {[%clk 0:00:08]} 42... Qe4+ {[%clk 0:00:03.3]} 43.
Nf3 {[%clk 0:00:05.7]} 43... Qxf3+ {[%clk 0:00:03.9]} 44. Kg1 {[%clk 0:00:06.6]}
44... Qd1+ {[%clk 0:00:04.4]} 45. Kg2 {[%clk 0:00:07]} 45... Qd3 {[%clk
0:00:04.9]} 46. Kf2 {[%clk 0:00:07]} 46... Qe4 {[%clk 0:00:05.8]} 47. Kg1 {[%clk
0:00:06.9]} 47... e5 {[%clk 0:00:06.3]} 48. Qxa5 {[%clk 0:00:07.3]} 48... Rc6
{[%clk 0:00:06.5]} 49. Qd2 {[%clk 0:00:06.9]} 49... Rc2 {[%clk 0:00:06.6]} 50.
Qd1 {[%clk 0:00:06.9]} 50... Qg2# {[%clk 0:00:06.8]} 0-1

[Event "Early-Titled-Tuesday-Blitz-March-19-2024"]
[Site "Chess.com"]
[Date "2024.03.19"]
[Round "11"]
[White "ChainedDowntohell"]
[Black "atalz0"]
[Result "1-0"]
[WhiteElo "2511"]
[BlackElo "2367"]
[TimeControl "180+1"]
[EndTime "10:07:07 PDT"]
[Termination "ChainedDowntohell won on time"]

1. d4 {[%clk 0:03:00.9]} 1... Nf6 {[%clk 0:02:59.6]} 2. c4 {[%clk 0:03:00.2]}
2... e6 {[%clk 0:02:59.9]} 3. Nf3 {[%clk 0:03:00.2]} 3... d5 {[%clk 0:02:59.8]}
4. Nc3 {[%clk 0:02:59.7]} 4... c5 {[%clk 0:02:57.6]} 5. e3 {[%clk 0:02:57.9]}
5... Nc6 {[%clk 0:02:55.8]} 6. cxd5 {[%clk 0:02:57.9]} 6... exd5 {[%clk
0:02:46.4]} 7. Bb5 {[%clk 0:02:56.3]} 7... cxd4 {[%clk 0:02:41.2]} 8. exd4
{[%clk 0:02:54.2]} 8... Bd6 {[%clk 0:02:38.1]} 9. O-O {[%clk 0:02:52]} 9... O-O
{[%clk 0:02:37.9]} 10. Bg5 {[%clk 0:02:51.7]} 10... Be6 {[%clk 0:02:36.1]} 11.
Bxc6 {[%clk 0:02:49.9]} 11... bxc6 {[%clk 0:02:36.1]} 12. Qa4 {[%clk 0:02:49.6]}
12... c5 {[%clk 0:02:10]} 13. dxc5 {[%clk 0:02:37]} 13... Bxc5 {[%clk
0:02:10.9]} 14. Rad1 {[%clk 0:02:34.3]} 14... Rb8 {[%clk 0:01:56.8]} 15. Bxf6
{[%clk 0:02:10.7]} 15... Qxf6 {[%clk 0:01:51.8]} 16. Nxd5 {[%clk 0:02:10.5]}
16... Qxb2 {[%clk 0:01:46.3]} 17. Rd2 {[%clk 0:01:54.2]} 17... Qb5 {[%clk
0:01:27.6]} 18. Qxb5 {[%clk 0:01:40.1]} 18... Rxb5 {[%clk 0:01:28.5]} 19. Nc7
{[%clk 0:01:38.1]} 19... Rb6 {[%clk 0:01:27.5]} 20. Nxe6 {[%clk 0:01:37]} 20...
Rxe6 {[%clk 0:01:28.4]} 21. Rc1 {[%clk 0:01:32.7]} 21... Bb6 {[%clk 0:01:22.9]}
22. g3 {[%clk 0:01:22.3]} 22... h6 {[%clk 0:01:18.8]} 23. Kg2 {[%clk 0:01:22.2]}
23... Rfe8 {[%clk 0:01:16.8]} 24. Rcc2 {[%clk 0:01:14.9]} 24... g5 {[%clk
0:01:09.9]} 25. h4 {[%clk 0:01:12]} 25... g4 {[%clk 0:01:07.3]} 26. Nd4 {[%clk
0:01:11.8]} 26... Rf6 {[%clk 0:01:04]} 27. Nb5 {[%clk 0:00:57.5]} 27... Kg7
{[%clk 0:01:00.8]} 28. Nc3 {[%clk 0:00:55.4]} 28... Rf5 {[%clk 0:00:56.6]} 29.
Nd5 {[%clk 0:00:41.5]} 29... Ba5 {[%clk 0:00:56.3]} 30. Rd4 {[%clk 0:00:38.5]}
30... h5 {[%clk 0:00:53.4]} 31. Nf4 {[%clk 0:00:20.6]} 31... Re7 {[%clk
0:00:43.7]} 32. Rd5 {[%clk 0:00:20.4]} 32... Ree5 {[%clk 0:00:38.6]} 33. Rxe5
{[%clk 0:00:16.8]} 33... Rxe5 {[%clk 0:00:39.5]} 34. Rc6 {[%clk 0:00:15.3]}
34... Bb6 {[%clk 0:00:37.6]} 35. a4 {[%clk 0:00:12.5]} 35... Ra5 {[%clk
0:00:32.9]} 36. Rd6 {[%clk 0:00:09.1]} 36... Rxa4 {[%clk 0:00:25.8]} 37. Nxh5+
{[%clk 0:00:08.9]} 37... Kf8 {[%clk 0:00:26]} 38. Nf6 {[%clk 0:00:05.4]} 38...
Ra2 {[%clk 0:00:24.4]} 39. Nxg4 {[%clk 0:00:04.6]} 39... Ke7 {[%clk 0:00:21.4]}
40. Rc6 {[%clk 0:00:03.1]} 40... f5 {[%clk 0:00:20.6]} 41. Ne5 {[%clk
0:00:02.8]} 41... Rxf2+ {[%clk 0:00:18.6]} 42. Kh3 {[%clk 0:00:03.5]} 42... Re2
{[%clk 0:00:16.4]} 43. Nc4 {[%clk 0:00:03.5]} 43... Bd4 {[%clk 0:00:14.6]} 44.
Rd6 {[%clk 0:00:02.8]} 44... Bc5 {[%clk 0:00:13.6]} 45. Rd5 {[%clk 0:00:02.9]}
45... Bf2 {[%clk 0:00:10.7]} 46. Rxf5 {[%clk 0:00:03.4]} 46... Ke6 {[%clk
0:00:10.6]} 47. Ra5 {[%clk 0:00:02.8]} 47... Rc2 {[%clk 0:00:08.5]} 48. Na3
{[%clk 0:00:02.3]} 48... Rc3 {[%clk 0:00:08.1]} 49. Kg4 {[%clk 0:00:02.1]} 49...
Bxg3 {[%clk 0:00:08.1]} 50. Nb5 {[%clk 0:00:01.7]} 50... Rd3 {[%clk 0:00:05.2]}
51. Rxa7 {[%clk 0:00:01.5]} 51... Be5 {[%clk 0:00:03.1]} 52. Rb7 {[%clk
0:00:01.7]} 52... Rb3 {[%clk 0:00:02]} 53. Nd4+ {[%clk 0:00:01.4]} 53... Bxd4
{[%clk 0:00:01.4]} 54. Rxb3 {[%clk 0:00:02.3]} 1-0